[Event "56th Biel Festival MTO 2023"]
[White "Nie,Xinyang"]
[Black "Ajay Krishna,S."]
[Site "Biel"]
[Round "6.20"]
[Annotator "ChessBase"]
[Result "0-1"]
[Date "2023.07.24"]
[WhiteElo "2288"]
[BlackElo "2390"]
[PlyCount "112"]
[TimeControl "60"]

1. d4 {[%emt 0:0:0]} d5 {[%emt 0:0:0]} 2. c4 {[%emt 0:0:0]} e6 {[%emt 0:0:0]} 3. Nf3 {[%emt 0:0:0]} c6 {[%emt 0:0:0]} 4. e3 {[%emt 0:0:0]} f5 {[%emt 0:0:0]} 5. Be2 {[%emt 0:0:0]} Nf6 {[%emt 0:0:0]} 6. O-O {[%emt 0:0:0]} Bd6 {[%emt 0:0:0]} 7. b3 {[%emt 0:0:0]} Qe7 {[%emt 0:0:0]} 8. a4 {[%emt 0:0:0]} a5 {[%emt 0:0:0]} 9. Ba3 {[%emt 0:0:0]} b6 {[%emt 0:0:0]} 10. Bxd6 {[%emt 0:0:0]} Qxd6 {[%emt 0:0:0]} 11. Ne5 {[%emt 0:0:0]} O-O {[%emt 0:0:0]} 12. Nd2 {[%emt 0:0:0]} Na6 {[%emt 0:0:0]} 13. Qc1 {[%emt 0:2:38]} Bb7 {[%emt 0:0:36]} 14. Qb2 {[%emt 0:1:34]} Nb4 {[%emt 0:6:44]} 15. Rac1 {[%emt 0:6:14]} c5 {[%emt 0:12:20]} 16. cxd5 {[%emt 0:0:11]} exd5 {[%emt 0:2:27]} 17. Ndf3 {[%emt 0:2:0]} Ne4 {[%emt 0:6:1]} 18. Nd2 {[%emt 0:0:45]} cxd4 {[%emt 0:11:10]} 19. exd4 {[%emt 0:0:59]} f4 {[%emt 0:7:34]} 20. f3 {[%emt 0:1:1]} Ng5 {[%emt 0:0:48]} 21. Bb5 {[%emt 0:1:39]} Rad8 {[%emt 0:11:15]} 22. Rfe1 {[%emt 0:0:51]} Ne6 {[%emt 0:2:8]} 23. Nb1 {[%emt 0:0:8]} Rf6 {[%emt 0:10:14]} 24. Qf2 {[%emt 0:1:41]} Nf8 {[%emt 0:1:5]} 25. Nc3 {[%emt 0:5:21]} Rc8 {[%emt 0:6:16]} 26. Qd2 {[%emt 0:0:6]} Ng6 {[%emt 0:7:13]} 27. Bd7 {[%emt 0:1:35]} Rd8 {[%emt 0:4:52]} 28. Nb5 {[%emt 0:0:5]} Qb8 {[%emt 0:0:9]} 29. Bh3 {[%emt 0:17:19]} Nf8 {[%emt 0:0:17]} 30. Rc7 {[%emt 0:0:31]} Na6 {[%emt 0:8:40]} 31. Re7 {[%emt 0:3:32]} Bc8 {[%emt 0:2:0]} 32. Bxc8 {[%emt 0:0:33]} Rxc8 {[%emt 0:0:17]} 33. Ng4 {[%emt 0:0:6]} Rg6 {[%emt 0:0:25]} 34. Qd3 {[%emt 0:37:42]} h5 {[%emt 0:1:7]} 35. Ne5 {[%emt 0:5:20]} Rf6 {[%emt 0:0:4]} 36. Qe2 {[%emt 0:2:2]} Nb4 {[%emt 0:1:8]} 37. Qf2 {[%emt 0:0:37]} Nc2 {[%emt 0:1:58]} 38. Re2 {[%emt 0:4:38]} Nb4 {[%emt 0:0:50]} 39. h3 {[%emt 0:2:58]} Rc1+ {[%emt 0:0:45]} 40. Kh2 {[%emt 0:0:30]} Qd8 {[%emt 0:1:0]} 41. Ra7 {[%emt 0:0:0]} Re6 {[%emt 0:0:0]} 42. Re1 {[%emt 0:3:22]} Rc2 {[%emt 0:0:0]} 43. Qf1 {[%emt 0:0:4]} Qh4 {[%emt 0:2:38]} 44. Re2 {[%emt 0:1:53]} Rxe2 {[%emt 0:7:4]} 45. Qxe2 {[%emt 0:0:4]} Nc6 {[%emt 0:2:10]} 46. Ra8 {[%emt 0:0:3]} Nxe5 {[%emt 0:0:39]} 47. dxe5 {[%emt 0:0:44]} Qg5 {[%emt 0:0:43]} 48. h4 {[%emt 0:0:13]} Qxh4+ {[%emt 0:1:49]} 49. Kg1 {[%emt 0:0:30]} Qe7 {[%emt 0:4:24]} 50. Qd2 {[%emt 0:0:0]} Rxe5 {[%emt 0:0:54]} 51. Qxf4 {[%emt 0:0:0]} Re6 {[%emt 0:0:37]} 52. Qf5 {[%emt 0:2:12]} Qc5+ {[%emt 0:3:20]} 53. Kh2 {[%emt 0:0:11]} Rf6 {[%emt 0:0:10]} 54. Qe5 {[%emt 0:0:35]} Kh7 {[%emt 0:6:17]} 55. Rd8 {[%emt 0:0:23]} Qf2 {[%emt 0:1:12]} 56. Rxd5 {[%emt 0:1:13]} Rg6 {[%emt 0:0:24]} 0-1

[Event "56th Biel Festival MTO 2023"]
[White "Toktomushev,Teimur"]
[Black "Rohith Krishna S"]
[Site "Biel"]
[Round "6.21"]
[Annotator "ChessBase"]
[Result "0-1"]
[Date "2023.07.24"]
[WhiteElo "2206"]
[BlackElo "2429"]
[PlyCount "136"]
[TimeControl "60"]

1. d4 {[%emt 0:0:0]} Nf6 {[%emt 0:0:0]} 2. c4 {[%emt 0:0:0]} e6 {[%emt 0:0:0]} 3. Nf3 {[%emt 0:0:0]} d5 {[%emt 0:0:0]} 4. Nc3 {[%emt 0:0:0]} Be7 {[%emt 0:0:0]} 5. Bf4 {[%emt 0:0:0]} O-O {[%emt 0:0:0]} 6. e3 {[%emt 0:0:0]} Nbd7 {[%emt 0:0:0]} 7. c5 {[%emt 0:0:0]} Nh5 {[%emt 0:8:47]} 8. Bd3 {[%emt 0:0:0]} c6 {[%emt 0:0:16]} 9. O-O {[%emt 0:2:28]} f5 {[%emt 0:4:11]} 10. b4 {[%emt 0:23:59]} h6 {[%emt 0:2:33]} 11. b5 {[%emt 0:14:18]} g5 {[%emt 0:23:43]} 12. bxc6 {[%emt 0:2:6]} bxc6 {[%emt 0:1:38]} 13. Ne5 {[%emt 0:1:33]} Nxe5 {[%emt 0:3:16]} 14. Bxe5 {[%emt 0:0:59]} Nf6 {[%emt 0:0:7]} 15. Qa4 {[%emt 0:4:24]} Ng4 {[%emt 0:2:15]} 16. Qxc6 {[%emt 0:9:59]} Nxe5 {[%emt 0:0:8]} 17. dxe5 {[%emt 0:27:19]} Bd7 {[%emt 0:0:21]} 18. Qa6 {[%emt 0:8:38]} Bxc5 {[%emt 0:0:8]} 19. Bb5 {[%emt 0:3:25]} Rb8 {[%emt 0:2:47]} 20. Bxd7 {[%emt 0:0:4]} Qxd7 {[%emt 0:0:5]} 21. Na4 {[%emt 0:0:55]} Be7 {[%emt 0:0:49]} 22. Rfc1 {[%emt 0:0:50]} Rfc8 {[%emt 0:0:51]} 23. g3 {[%emt 0:0:26]} Kf7 {[%emt 0:1:9]} 24. Rxc8 {[%emt 0:0:35]} Rxc8 {[%emt 0:2:44]} 25. Nb2 {[%emt 0:0:29]} Rc2 {[%emt 0:1:56]} 26. Nd3 {[%emt 0:0:12]} d4 {[%emt 0:1:4]} 27. exd4 {[%emt 0:0:41]} Qxd4 {[%emt 0:0:22]} 28. Rf1 {[%emt 0:0:26]} h5 {[%emt 0:4:35]} 29. Ne1 {[%emt 0:0:16]} Rc3 {[%emt 0:0:29]} 30. Qe2 {[%emt 0:0:8]} Kg6 {[%emt 0:1:24]} 31. Nc2 {[%emt 0:1:8]} Qc5 {[%emt 0:1:0]} 32. Na1 {[%emt 0:0:39]} Qc4 {[%emt 0:5:13]} 33. Qxc4 {[%emt 0:0:21]} Rxc4 {[%emt 0:0:5]} 34. Nb3 {[%emt 0:0:2]} Bd8 {[%emt 0:3:53]} 35. a4 {[%emt 0:0:31]} Bc7 {[%emt 0:4:7]} 36. Rd1 {[%emt 0:0:23]} Bxe5 {[%emt 0:0:46]} 37. Kg2 {[%emt 0:1:4]} f4 {[%emt 0:0:7]} 38. gxf4 {[%emt 0:0:39]} gxf4 {[%emt 0:0:36]} 39. Rd7 {[%emt 0:0:29]} Kf6 {[%emt 0:4:9]} 40. Nd2 {[%emt 0:0:33]} Rxa4 {[%emt 0:0:6]} 41. f3 {[%emt 0:0:0]} Bd4 {[%emt 0:0:0]} 42. Ne4+ {[%emt 0:0:0]} Ke5 {[%emt 0:0:0]} 43. Rg7 {[%emt 0:0:0]} Ra2+ {[%emt 0:0:0]} 44. Kh3 {[%emt 0:0:0]} Kd5 {[%emt 0:0:0]} 45. Rg5+ {[%emt 0:0:0]} Kc4 {[%emt 0:0:0]} 46. Rxh5 {[%emt 0:0:0]} Bg1 {[%emt 0:1:11]} 47. Re5 {[%emt 0:0:18]} Rxh2+ {[%emt 0:0:47]} 48. Kg4 {[%emt 0:0:3]} Rg2+ {[%emt 0:1:18]} 49. Kh5 {[%emt 0:0:31]} Rg7 {[%emt 0:1:4]} 50. Rxe6 {[%emt 0:0:47]} a5 {[%emt 0:0:36]} 51. Nd6+ {[%emt 0:14:7]} Kb3 {[%emt 0:11:2]} 52. Re4 {[%emt 0:1:56]} Rc7 {[%emt 0:6:38]} 53. Rxf4 {[%emt 0:1:31]} a4 {[%emt 0:0:55]} 54. Rg4 {[%emt 0:11:40]} Bb6 {[%emt 0:3:19]} 55. Ne4 {[%emt 0:2:39]} Rc2 {[%emt 0:4:36]} 56. Rg5 {[%emt 0:1:59]} Kb4 {[%emt 0:1:52]} 57. Rg4 {[%emt 0:2:1]} Rc4 {[%emt 0:3:41]} 58. Rg6 {[%emt 0:1:16]} Be3 {[%emt 0:0:18]} 59. Ra6 {[%emt 0:0:37]} a3 {[%emt 0:0:25]} 60. Ra8 {[%emt 0:0:35]} Kb3 {[%emt 0:0:9]} 61. Nd6 {[%emt 0:0:0]} Rc5+ {[%emt 0:0:0]} 62. Kg4 {[%emt 0:0:0]} a2 {[%emt 0:0:0]} 63. Rb8+ {[%emt 0:0:0]} Ka4 {[%emt 0:0:0]} 64. Ne4 {[%emt 0:0:0]} Rc1 {[%emt 0:0:0]} 65. Ra8+ {[%emt 0:0:0]} Kb3 {[%emt 0:0:0]} 66. Rb8+ {[%emt 0:0:0]} Kc2 {[%emt 0:0:0]} 67. Rc8+ {[%emt 0:0:0]} Kd3 {[%emt 0:0:0]} 68. Rd8+ {[%emt 0:0:0]} Ke2 {[%emt 0:0:0]} 0-1

[Event "56th Biel Festival MTO 2023"]
[White "Kamber,Bruno"]
[Black "Huang,Qian"]
[Site "Biel"]
[Round "6.22"]
[Annotator "ChessBase"]
[Result "0-1"]
[Date "2023.07.24"]
[WhiteElo "2214"]
[BlackElo "2422"]
[PlyCount "116"]
[TimeControl "60"]

1. e4 {[%emt 0:0:0]} c5 {[%emt 0:0:0]} 2. Nf3 {[%emt 0:0:0]} Nc6 {[%emt 0:0:0]} 3. Bb5 {[%emt 0:0:0]} e6 {[%emt 0:0:0]} 4. Bxc6 {[%emt 0:0:0]} bxc6 {[%emt 0:0:0]} 5. d3 {[%emt 0:0:0]} Qc7 {[%emt 0:0:0]} 6. Qe2 {[%emt 0:0:0]} Ne7 {[%emt 0:0:0]} 7. h4 {[%emt 0:0:0]} e5 {[%emt 0:0:0]} 8. h5 {[%emt 0:0:0]} d6 {[%emt 0:1:14]} 9. Nbd2 {[%emt 0:1:33]} h6 {[%emt 0:3:14]} 10. Nc4 {[%emt 0:2:48]} Be6 {[%emt 0:0:46]} 11. Bd2 {[%emt 0:9:2]} Nc8 {[%emt 0:3:8]} 12. Nh4 {[%emt 0:2:7]} Nb6 {[%emt 0:0:33]} 13. f4 {[%emt 0:0:46]} Nxc4 {[%emt 0:7:36]} 14. dxc4 {[%emt 0:0:6]} exf4 {[%emt 0:0:14]} 15. Bxf4 {[%emt 0:0:52]} Be7 {[%emt 0:0:38]} 16. Nf5 {[%emt 0:4:21]} Bxf5 {[%emt 0:1:44]} 17. exf5 {[%emt 0:0:6]} O-O-O {[%emt 0:0:53]} 18. O-O-O {[%emt 0:0:47]} Bf6 {[%emt 0:2:31]} 19. Rh3 {[%emt 0:1:17]} Rhe8 {[%emt 0:0:46]} 20. Qf3 {[%emt 0:9:3]} Kb7 {[%emt 0:17:56]} 21. Qa3 {[%emt 0:18:8]} Re4 {[%emt 0:7:46]} 22. Rb3+ {[%emt 0:6:42]} Ka8 {[%emt 0:0:31]} 23. g3 {[%emt 0:0:25]} Rxc4 {[%emt 0:5:0]} 24. Qa6 {[%emt 0:5:48]} Rd4 {[%emt 0:2:14]} 25. Rxd4 {[%emt 0:8:58]} Bxd4 {[%emt 0:10:10]} 26. a4 {[%emt 0:4:54]} f6 {[%emt 0:3:32]} 27. a5 {[%emt 0:5:4]} Be5 {[%emt 0:0:56]} 28. Bd2 {[%emt 0:7:18]} Qc8 {[%emt 0:8:54]} 29. Qf1 {[%emt 0:1:25]} d5 {[%emt 0:0:51]} 30. c4 {[%emt 0:1:19]} Qa6 {[%emt 0:5:0]} 31. Rf3 {[%emt 0:4:33]} Qxc4+ {[%emt 0:5:22]} 32. Qxc4 {[%emt 0:0:8]} dxc4 {[%emt 0:0:3]} 33. Bf4 {[%emt 0:0:9]} Bxf4+ {[%emt 0:5:34]} 34. Rxf4 {[%emt 0:0:7]} Rd4 {[%emt 0:0:16]} 35. Rf3 {[%emt 0:6:46]} Kb7 {[%emt 0:0:7]} 36. Kc2 {[%emt 0:2:21]} Ka6 {[%emt 0:0:11]} 37. Re3 {[%emt 0:0:16]} Rd3 {[%emt 0:4:24]} 38. Re6 {[%emt 0:0:21]} Rxg3 {[%emt 0:1:1]} 39. Rxc6+ {[%emt 0:0:8]} Kb5 {[%emt 0:2:4]} 40. Rc7 {[%emt 0:1:9]} a6 {[%emt 0:0:4]} 41. Rb7+ {[%emt 0:30:50]} Kxa5 {[%emt 0:30:24]} 42. Rb8 {[%emt 0:0:0]} Rh3 {[%emt 0:0:0]} 43. Rb7 {[%emt 0:0:0]} Rxh5 {[%emt 0:0:0]} 44. Rxg7 {[%emt 0:0:0]} Rxf5 {[%emt 0:0:0]} 45. Kc3 {[%emt 0:0:0]} Kb6 {[%emt 0:0:0]} 46. Kxc4 {[%emt 0:0:0]} Kc6 {[%emt 0:0:0]} 47. Ra7 {[%emt 0:0:0]} Rf4+ {[%emt 0:0:0]} 48. Kc3 {[%emt 0:0:0]} h5 {[%emt 0:0:0]} 49. Rxa6+ {[%emt 0:0:0]} Kd5 {[%emt 0:0:0]} 50. Ra8 {[%emt 0:0:0]} Rf3+ {[%emt 0:0:0]} 51. Kc2 {[%emt 0:0:0]} h4 {[%emt 0:0:0]} 52. Rh8 {[%emt 0:0:0]} h3 {[%emt 0:0:0]} 53. b3 {[%emt 0:0:0]} f5 {[%emt 0:0:0]} 54. Rh4 {[%emt 0:0:0]} f4 {[%emt 0:0:0]} 55. Kd2 {[%emt 0:0:0]} Ke4 {[%emt 0:0:0]} 56. Rh5 {[%emt 0:0:0]} Rxb3 {[%emt 0:0:0]} 57. Rxc5 {[%emt 0:0:0]} Kf3 {[%emt 0:0:0]} 58. Rh5 {[%emt 0:0:0]} Kg2 {[%emt 0:0:0]} 0-1

[Event "56th Biel Festival MTO 2023"]
[White "Seul,Georg"]
[Black "Zhang,Lanlin"]
[Site "Biel"]
[Round "6.23"]
[Annotator "ChessBase"]
[Result "1-0"]
[Date "2023.07.24"]
[WhiteElo "2376"]
[BlackElo "2194"]
[PlyCount "131"]
[TimeControl "60"]

1. e4 {[%emt 0:0:0]} c5 {[%emt 0:0:0]} 2. Nf3 {[%emt 0:0:0]} d6 {[%emt 0:0:0]} 3. Bb5+ {[%emt 0:0:0]} Nd7 {[%emt 0:0:0]} 4. O-O {[%emt 0:0:0]} Ngf6 {[%emt 0:0:0]} 5. Re1 {[%emt 0:0:0]} a6 {[%emt 0:0:0]} 6. Bf1 {[%emt 0:0:0]} b5 {[%emt 0:0:0]} 7. a4 {[%emt 0:1:22]} bxa4 {[%emt 0:3:42]} 8. d4 {[%emt 0:14:13]} cxd4 {[%emt 0:1:57]} 9. Nxd4 {[%emt 0:10:43]} e5 {[%emt 0:10:58]} 10. Nf5 {[%emt 0:2:42]} Nc5 {[%emt 0:0:16]} 11. Nc3 {[%emt 0:0:58]} h6 {[%emt 0:8:27]} 12. Ne3 {[%emt 0:11:33]} Be6 {[%emt 0:8:33]} 13. Ned5 {[%emt 0:19:52]} Be7 {[%emt 0:5:12]} 14. Nxf6+ {[%emt 0:1:3]} Bxf6 {[%emt 0:4:2]} 15. Nxa4 {[%emt 0:0:8]} Nxa4 {[%emt 0:1:25]} 16. Rxa4 {[%emt 0:0:4]} Qb6 {[%emt 0:1:26]} 17. Qd3 {[%emt 0:6:4]} a5 {[%emt 0:4:28]} 18. Be3 {[%emt 0:19:8]} Qb8 {[%emt 0:13:24]} 19. Rea1 {[%emt 0:1:0]} Bd8 {[%emt 0:5:14]} 20. b4 {[%emt 0:2:59]} Bd7 {[%emt 0:0:7]} 21. R4a3 {[%emt 0:0:37]} f5 {[%emt 0:5:6]} 22. exf5 {[%emt 0:2:16]} O-O {[%emt 0:2:57]} 23. bxa5 {[%emt 0:0:11]} Bxf5 {[%emt 0:0:20]} 24. Qd5+ {[%emt 0:0:19]} Kh8 {[%emt 0:0:13]} 25. Bd3 {[%emt 0:1:11]} Bxd3 {[%emt 0:0:52]} 26. Qxd3 {[%emt 0:0:20]} Bf6 {[%emt 0:1:36]} 27. Qd5 {[%emt 0:0:48]} Rc8 {[%emt 0:3:25]} 28. Rb3 {[%emt 0:1:57]} Qc7 {[%emt 0:0:8]} 29. Ra2 {[%emt 0:0:23]} Ra6 {[%emt 0:6:30]} 30. Bb6 {[%emt 0:0:32]} Qd7 {[%emt 0:1:42]} 31. g3 {[%emt 0:0:50]} Bd8 {[%emt 0:1:28]} 32. Bxd8 {[%emt 0:0:57]} Qxd8 {[%emt 0:0:6]} 33. Rb7 {[%emt 0:1:22]} Rca8 {[%emt 0:2:52]} 34. Rb5 {[%emt 0:1:16]} Qc7 {[%emt 0:1:21]} 35. h4 {[%emt 0:0:45]} Qc3 {[%emt 0:0:46]} 36. Kg2 {[%emt 0:0:35]} Rf8 {[%emt 0:2:11]} 37. Rb3 {[%emt 0:0:14]} Qe1 {[%emt 0:1:46]} 38. c4 {[%emt 0:0:12]} Rxa5 {[%emt 0:4:5]} 39. Qxd6 {[%emt 0:1:56]} Qe4+ {[%emt 0:1:7]} 40. Kh2 {[%emt 0:0:23]} Qa8 {[%emt 0:2:13]} 41. Rb8 {[%emt 0:7:7]} Qxb8 {[%emt 0:0:0]} 42. Qxb8 {[%emt 0:0:45]} Rxb8 {[%emt 0:0:0]} 43. Rxa5 {[%emt 0:0:7]} Rb2 {[%emt 0:0:0]} 44. Kg2 {[%emt 0:0:22]} Rc2 {[%emt 0:0:0]} 45. Rc5 {[%emt 0:0:43]} e4 {[%emt 0:0:0]} 46. Kf1 {[%emt 0:0:55]} Kg8 {[%emt 0:0:0]} 47. Rc7 {[%emt 0:13:13]} h5 {[%emt 0:0:0]} 48. Ke1 {[%emt 0:0:7]} Kh7 {[%emt 0:0:0]} 49. Rc6 {[%emt 0:0:56]} Kg8 {[%emt 0:0:0]} 50. Rc5 {[%emt 0:3:59]} g6 {[%emt 0:8:35]} 51. Rc7 {[%emt 0:0:8]} Kh8 {[%emt 0:0:4]} 52. Kf1 {[%emt 0:0:17]} Kg8 {[%emt 0:0:10]} 53. Ke1 {[%emt 0:0:6]} Kh8 {[%emt 0:0:5]} 54. c5 {[%emt 0:0:2]} Kg8 {[%emt 0:0:4]} 55. Kf1 {[%emt 0:0:24]} Kh8 {[%emt 0:0:5]} 56. Ke1 {[%emt 0:0:5]} Kg8 {[%emt 0:0:1]} 57. c6 {[%emt 0:0:6]} Kh8 {[%emt 0:0:4]} 58. Kd1 {[%emt 0:1:47]} Rc4 {[%emt 0:1:28]} 59. Kd2 {[%emt 0:0:7]} Kg8 {[%emt 0:0:1]} 60. Ke3 {[%emt 0:0:44]} Kf8 {[%emt 0:0:11]} 61. Kf4 {[%emt 0:4:37]} Rc2 {[%emt 0:2:7]} 62. Kxe4 {[%emt 0:2:0]} Rxf2 {[%emt 0:2:37]} 63. Rh7 {[%emt 0:1:0]} Rc2 {[%emt 0:0:49]} 64. c7 {[%emt 0:0:23]} Ke8 {[%emt 0:0:4]} 65. Ke5 {[%emt 0:2:32]} Rc6 {[%emt 0:0:7]} 66. c8=Q+ {[%emt 0:0:17]} 1-0

[Event "56th Biel Festival MTO 2023"]
[White "Sukandar,Irine Kharisma"]
[Black "Costello,Alexander"]
[Site "Biel"]
[Round "6.24"]
[Annotator "ChessBase"]
[Result "1-0"]
[Date "2023.07.25"]
[WhiteElo "2358"]
[BlackElo "2224"]
[PlyCount "133"]
[TimeControl "60"]

1. e4 {[%emt 0:0:0]} c5 {[%emt 0:0:0]} 2. Nf3 {[%emt 0:0:0]} Nc6 {[%emt 0:0:0]} 3. Bb5 {[%emt 0:0:0]} e6 {[%emt 0:0:0]} 4. Bxc6 {[%emt 0:0:0]} bxc6 {[%emt 0:0:0]} 5. d3 {[%emt 0:0:0]} Ne7 {[%emt 0:0:0]} 6. O-O {[%emt 0:0:0]} Ng6 {[%emt 0:0:0]} 7. e5 {[%emt 0:0:0]} Be7 {[%emt 0:0:27]} 8. Nc3 {[%emt 0:4:6]} f6 {[%emt 0:2:17]} 9. exf6 {[%emt 0:7:46]} gxf6 {[%emt 0:1:33]} 10. Bh6 {[%emt 0:10:46]} e5 {[%emt 0:1:49]} 11. Nd2 {[%emt 0:1:29]} Qb6 {[%emt 0:33:20]} 12. Qh5 {[%emt 0:22:31]} Rg8 {[%emt 0:11:8]} 13. Be3 {[%emt 0:7:13]} d6 {[%emt 0:4:30]} 14. f4 {[%emt 0:2:54]} Kd8 {[%emt 0:17:13]} 15. Qxh7 {[%emt 0:7:33]} Be6 {[%emt 0:0:30]} 16. f5 {[%emt 0:0:15]} Nf8 {[%emt 0:0:26]} 17. Qh5 {[%emt 0:0:42]} Bd7 {[%emt 0:0:46]} 18. Nce4 {[%emt 0:4:59]} Be8 {[%emt 0:0:45]} 19. Qh6 {[%emt 0:0:32]} Nd7 {[%emt 0:0:4]} 20. Qh7 {[%emt 0:7:53]} Rf8 {[%emt 0:0:31]} 21. Rab1 {[%emt 0:0:30]} Rf7 {[%emt 0:2:50]} 22. Qh8 {[%emt 0:0:33]} d5 {[%emt 0:4:49]} 23. Ng3 {[%emt 0:0:16]} a5 {[%emt 0:4:53]} 24. a3 {[%emt 0:4:25]} Qc7 {[%emt 0:0:44]} 25. Nh5 {[%emt 0:0:58]} Bf8 {[%emt 0:2:27]} 26. Bh6 {[%emt 0:2:0]} Qd6 {[%emt 0:1:6]} 27. Rbe1 {[%emt 0:2:1]} Rb8 {[%emt 0:0:53]} 28. b3 {[%emt 0:0:46]} Qe7 {[%emt 0:4:55]} 29. Nf4 {[%emt 0:1:4]} Rh7 {[%emt 0:1:42]} 30. Ne6+ {[%emt 0:0:59]} Kc8 {[%emt 0:0:18]} 31. Bxf8 {[%emt 0:1:13]} Qf7 {[%emt 0:0:7]} 32. Qxh7 {[%emt 0:0:33]} Qxh7 {[%emt 0:0:3]} 33. Bd6 {[%emt 0:2:17]} Rb7 {[%emt 0:0:32]} 34. Rf2 {[%emt 0:3:31]} Bf7 {[%emt 0:1:1]} 35. Re3 {[%emt 0:0:20]} Qg8 {[%emt 0:1:45]} 36. Nxc5 {[%emt 0:1:56]} Nxc5 {[%emt 0:0:5]} 37. Bxc5 {[%emt 0:0:3]} Bh5 {[%emt 0:3:11]} 38. b4 {[%emt 0:1:8]} a4 {[%emt 0:2:0]} 39. Nf1 {[%emt 0:2:3]} Rg7 {[%emt 0:0:36]} 40. Ng3 {[%emt 0:0:54]} Be8 {[%emt 0:0:22]} 41. Re1 {[%emt 0:31:43]} Rg5 {[%emt 0:0:0]} 42. Rc1 {[%emt 0:0:0]} Bf7 {[%emt 0:0:0]} 43. Rb1 {[%emt 0:0:0]} Rg4 {[%emt 0:3:32]} 44. Ne2 {[%emt 0:0:0]} d4 {[%emt 0:1:59]} 45. h3 {[%emt 0:0:0]} Rh4 {[%emt 0:11:52]} 46. Kh2 {[%emt 0:0:0]} Bd5 {[%emt 0:0:54]} 47. c4 {[%emt 0:0:0]} dxc3 {[%emt 0:3:9]} 48. Nxc3 {[%emt 0:0:0]} Rf4 {[%emt 0:0:8]} 49. Rbf1 {[%emt 0:0:0]} Kb7 {[%emt 0:7:17]} 50. g4 {[%emt 0:0:0]} Rxf2+ {[%emt 0:2:11]} 51. Rxf2 {[%emt 0:0:0]} Qg5 {[%emt 0:0:7]} 52. Nxa4 {[%emt 0:0:0]} Qc1 {[%emt 0:0:7]} 53. Nb6 {[%emt 0:0:0]} Qd1 {[%emt 0:2:34]} 54. Nxd5 {[%emt 0:0:0]} cxd5 {[%emt 0:0:2]} 55. g5 {[%emt 0:0:0]} Qh5 {[%emt 0:1:50]} 56. gxf6 {[%emt 0:0:0]} d4 {[%emt 0:1:14]} 57. f7 {[%emt 0:0:0]} Qxf7 {[%emt 0:0:39]} 58. f6 {[%emt 0:0:0]} Kc6 {[%emt 0:0:29]} 59. a4 {[%emt 0:0:0]} Kd5 {[%emt 0:0:48]} 60. a5 {[%emt 0:4:36]} e4 {[%emt 0:0:9]} 61. dxe4+ {[%emt 0:7:12]} Kxe4 {[%emt 0:0:5]} 62. a6 {[%emt 0:0:9]} Ke3 {[%emt 0:1:59]} 63. a7 {[%emt 0:0:0]} Qc7+ {[%emt 0:0:0]} 64. Kg2 {[%emt 0:0:0]} Qc6+ {[%emt 0:0:0]} 65. Kg1 {[%emt 0:0:0]} Qd5 {[%emt 0:0:0]} 66. f7 {[%emt 0:0:0]} Qg5+ {[%emt 0:0:0]} 67. Rg2 {[%emt 0:0:0]} 1-0

[Event "56th Biel Festival MTO 2023"]
[White "Rosen,Eric"]
[Black "Monteverde,Jonathan"]
[Site "Biel"]
[Round "6.25"]
[Annotator "ChessBase"]
[Result "1-0"]
[Date "2023.07.24"]
[WhiteElo "2344"]
[BlackElo "2074"]
[PlyCount "119"]
[TimeControl "60"]

1. Nf3 {[%emt 0:0:0]} d5 {[%emt 0:0:0]} 2. e3 {[%emt 0:0:0]} Nf6 {[%emt 0:0:0]} 3. c4 {[%emt 0:0:0]} e6 {[%emt 0:4:33]} 4. Nc3 {[%emt 0:0:0]} Be7 {[%emt 0:0:13]} 5. b3 {[%emt 0:0:0]} O-O {[%emt 0:0:9]} 6. Bb2 {[%emt 0:0:0]} b6 {[%emt 0:1:26]} 7. cxd5 {[%emt 0:0:0]} exd5 {[%emt 0:6:53]} 8. d4 {[%emt 0:0:0]} c6 {[%emt 0:5:46]} 9. Bd3 {[%emt 0:1:42]} Ba6 {[%emt 0:15:49]} 10. Ne5 {[%emt 0:4:41]} Bxd3 {[%emt 0:0:36]} 11. Qxd3 {[%emt 0:0:5]} Nfd7 {[%emt 0:11:58]} 12. O-O {[%emt 0:2:19]} Nxe5 {[%emt 0:10:27]} 13. dxe5 {[%emt 0:0:5]} Nd7 {[%emt 0:0:10]} 14. Ne2 {[%emt 0:6:27]} f6 {[%emt 0:5:24]} 15. Nf4 {[%emt 0:13:17]} fxe5 {[%emt 0:4:17]} 16. Ne6 {[%emt 0:0:42]} Nc5 {[%emt 0:0:8]} 17. Nxc5 {[%emt 0:3:7]} Bxc5 {[%emt 0:0:5]} 18. Bxe5 {[%emt 0:0:6]} Be7 {[%emt 0:1:15]} 19. Rac1 {[%emt 0:1:58]} Bf6 {[%emt 0:0:23]} 20. Bg3 {[%emt 0:1:0]} Rc8 {[%emt 0:3:20]} 21. Rfd1 {[%emt 0:3:9]} Bh4 {[%emt 0:8:25]} 22. Rc2 {[%emt 0:5:59]} Bxg3 {[%emt 0:0:10]} 23. hxg3 {[%emt 0:0:2]} Qf6 {[%emt 0:2:6]} 24. Qa6 {[%emt 0:1:43]} Qf7 {[%emt 0:2:32]} 25. Qd3 {[%emt 0:7:52]} Rcd8 {[%emt 0:3:35]} 26. e4 {[%emt 0:4:22]} Qf6 {[%emt 0:0:20]} 27. Rcd2 {[%emt 0:6:56]} h6 {[%emt 0:0:9]} 28. Qd4 {[%emt 0:6:34]} Qg5 {[%emt 0:1:38]} 29. exd5 {[%emt 0:10:19]} cxd5 {[%emt 0:2:9]} 30. Qa4 {[%emt 0:2:3]} Rf7 {[%emt 0:5:0]} 31. Qc6 {[%emt 0:2:1]} Rfd7 {[%emt 0:0:54]} 32. Rd4 {[%emt 0:2:7]} Rd6 {[%emt 0:1:3]} 33. Qb5 {[%emt 0:2:41]} Kh8 {[%emt 0:0:18]} 34. Qd3 {[%emt 0:2:7]} R6d7 {[%emt 0:0:48]} 35. Re1 {[%emt 0:1:36]} Rc8 {[%emt 0:1:46]} 36. f4 {[%emt 0:3:2]} Qh5 {[%emt 0:3:14]} 37. Re5 {[%emt 0:0:46]} Qf7 {[%emt 0:0:29]} 38. Rexd5 {[%emt 0:2:31]} Rxd5 {[%emt 0:0:7]} 39. Rxd5 {[%emt 0:0:2]} Re8 {[%emt 0:0:48]} 40. Kh2 {[%emt 0:4:6]} Re1 {[%emt 0:1:34]} 41. Qd2 {[%emt 0:33:57]} Re7 {[%emt 0:0:0]} 42. b4 {[%emt 0:0:0]} Re8 {[%emt 0:0:0]} 43. a4 {[%emt 0:0:0]} Re2 {[%emt 0:0:0]} 44. Qd4 {[%emt 0:0:0]} Qg6 {[%emt 0:0:0]} 45. Rd8+ {[%emt 0:0:0]} Kh7 {[%emt 0:0:0]} 46. Qd5 {[%emt 0:0:0]} Re6 {[%emt 0:0:0]} 47. Rf8 {[%emt 0:0:0]} Qg4 {[%emt 0:0:0]} 48. Qd3+ {[%emt 0:0:0]} Rg6 {[%emt 0:0:0]} 49. f5 {[%emt 0:0:0]} Rf6 {[%emt 0:0:24]} 50. Rxf6 {[%emt 0:0:0]} gxf6 {[%emt 0:0:54]} 51. Qd7+ {[%emt 0:0:0]} Kg8 {[%emt 0:4:47]} 52. Qd5+ {[%emt 0:0:0]} Kg7 {[%emt 0:1:27]} 53. Qb7+ {[%emt 0:0:0]} Kg8 {[%emt 0:0:57]} 54. Qa8+ {[%emt 0:0:0]} Kg7 {[%emt 0:0:5]} 55. Qxa7+ {[%emt 0:0:0]} Kg8 {[%emt 0:0:7]} 56. Qb8+ {[%emt 0:0:0]} Kg7 {[%emt 0:0:5]} 57. Qc7+ {[%emt 0:0:0]} Kg8 {[%emt 0:0:6]} 58. Qd8+ {[%emt 0:0:0]} Kg7 {[%emt 0:0:4]} 59. Qe7+ {[%emt 0:0:0]} Kg8 {[%emt 0:0:6]} 60. Qe8+ {[%emt 0:0:0]} 1-0

[Event "56th Biel Festival MTO 2023"]
[White "Ouellet,Maili-Jade"]
[Black "Sutter,Oliver"]
[Site "Biel"]
[Round "6.26"]
[Annotator "ChessBase"]
[Result "1/2-1/2"]
[Date "2023.07.24"]
[WhiteElo "2201"]
[BlackElo "2313"]
[PlyCount "73"]
[TimeControl "60"]

1. e4 {[%emt 0:0:0]} c5 {[%emt 0:0:0]} 2. Nf3 {[%emt 0:0:0]} Nc6 {[%emt 0:0:0]} 3. c3 {[%emt 0:0:0]} Nf6 {[%emt 0:0:0]} 4. e5 {[%emt 0:0:0]} Nd5 {[%emt 0:0:0]} 5. d4 {[%emt 0:0:0]} cxd4 {[%emt 0:0:0]} 6. Bc4 {[%emt 0:0:0]} Nb6 {[%emt 0:0:0]} 7. Bb3 {[%emt 0:0:0]} d5 {[%emt 0:0:0]} 8. exd6 {[%emt 0:0:0]} Qxd6 {[%emt 0:0:0]} 9. Na3 {[%emt 0:0:0]} Be6 {[%emt 0:0:41]} 10. Nb5 {[%emt 0:0:6]} Qd7 {[%emt 0:1:41]} 11. Bf4 {[%emt 0:4:22]} Rc8 {[%emt 0:37:53]} 12. O-O {[%emt 0:12:5]} Bxb3 {[%emt 0:0:12]} 13. axb3 {[%emt 0:0:59]} a6 {[%emt 0:4:1]} 14. Nbxd4 {[%emt 0:0:54]} Nxd4 {[%emt 0:0:15]} 15. Nxd4 {[%emt 0:1:28]} Nd5 {[%emt 0:0:53]} 16. Be5 {[%emt 0:4:36]} f6 {[%emt 0:3:18]} 17. Bg3 {[%emt 0:1:36]} e5 {[%emt 0:0:37]} 18. Re1 {[%emt 0:11:33]} Kf7 {[%emt 0:17:43]} 19. Nf3 {[%emt 0:16:41]} Nb6 {[%emt 0:3:39]} 20. Qc2 {[%emt 0:1:10]} Bd6 {[%emt 0:1:54]} 21. Rad1 {[%emt 0:2:13]} Qe7 {[%emt 0:5:39]} 22. Nh4 {[%emt 0:6:25]} g6 {[%emt 0:1:29]} 23. f4 {[%emt 0:1:14]} Nd7 {[%emt 0:7:25]} 24. Nf3 {[%emt 0:3:56]} Rhe8 {[%emt 0:0:43]} 25. Qd2 {[%emt 0:7:50]} Rc6 {[%emt 0:1:19]} 26. fxe5 {[%emt 0:7:6]} Nxe5 {[%emt 0:0:4]} 27. Nxe5+ {[%emt 0:2:29]} Bxe5 {[%emt 0:0:7]} 28. Bxe5 {[%emt 0:1:11]} fxe5 {[%emt 0:0:5]} 29. Re4 {[%emt 0:1:30]} Kg7 {[%emt 0:1:26]} 30. b4 {[%emt 0:3:43]} Rf6 {[%emt 0:2:46]} 31. h3 {[%emt 0:2:26]} Qc7 {[%emt 0:1:12]} 32. Qd7+ {[%emt 0:7:27]} Qxd7 {[%emt 0:0:26]} 33. Rxd7+ {[%emt 0:0:3]} Rf7 {[%emt 0:0:5]} 34. Rxf7+ {[%emt 0:0:12]} Kxf7 {[%emt 0:0:7]} 35. Kf2 {[%emt 0:0:14]} Ke6 {[%emt 0:0:24]} 36. Rc4 {[%emt 0:0:34]} Kd6 {[%emt 0:1:2]} 37. Ke2 {[%emt 0:1:38]} 1/2-1/2